{"text_format":"2","workbook":"xlsx","n_sheets":7,"sheets":["Instructions","Task Schedule Overview","G9 Y10 MYP4","G10 Y11 MYP5","G11 Y12 DP1","G12 Y13 DP2","Validations"],"not_rendered":{"charts":0,"images":0,"macros":0,"external_links":0,"defined_names":4,"comments":2,"pivot_tables":0},"unopened":[],"bounds":{"document_bytes":16777216,"sheet_cells":100000,"run_cost":"one","rows_first":2000,"rows_last":500,"rows_between":2000,"halvings":0,"cell_chars":16384,"cell_head_chars":4096},"cells_cut":0,"cells_raw":0,"read":"whole","date_system":"1900"}

{"sheet":"Instructions","index":0,"n_rows":25,"n_cols":13,"rows_kept":25,"cut":false,"hidden":false,"merged":[[19,2,19,5],[20,4,20,7],[20,8,20,11],[23,1,23,3],[24,3,24,6],[24,8,24,11],[0,0,7,12],[11,6,11,10],[12,2,12,6],[15,2,15,7],[16,6,16,9],[17,8,17,11],[19,8,19,11]]}
["About this document\nTask Schedules are designed to help you set relevant tasks for students to complete on BridgeU, and follows the BridgeU Guidance Calendar and Lesson Plans. The Guidance Calendar below maps out stages of the student journey beginning in Grade 9 / Year 10 / MYP 4. This should be treated as a guide; please feel free to adapt or change any aspect of each suggested task to suit your needs.\n\nAbout BridgeU Tasks\nAdvisors can assign Students tasks on BridgeU to schedule and monitor student progress. Assigned tasks populate on a Student's home page with the relevant details and deadline.\n\nHow to use this document\nIn the 'Task Schedule Overview' tab, you can customize columns E through I. You can insert rows for additional tasks. The remaining tabs should not be edited, as information in these tabs will be populated based on the 'Task Schedule Overview' tab. "]
{"$rows_empty":9}
[null,"AUGUST","SEPTEMBER","OCTOBER","NOVEMBER","DECEMBER","JANUARY","FEBRUARY","MARCH","APRIL","MAY","JUNE","JULY"]
["G9/ Y10/ MYP4",{"$nulls":5},"Strengths Exploration"]
[null,null,"Psychometric Assessment Tests"]
[]
[]
["G10/ Y11/ MYP5",null,"Psychometric Assessment Tests"]
[{"$nulls":6},"Career Exploration"]
[{"$nulls":8},"Subject Exploration"]
[]
["G11/ Y12/ DP1",null,"University Exploration",{"$nulls":5},"Personal Statement / Essay Wriing"]
[{"$nulls":4},"University Shortlist",null,null,null,"Recommendations / References"]
[]
[]
["G12/ Y13/ DP2","Finalize University List"]
[null,null,null,"Application Submission",{"$nulls":4},"Offers / Acceptances"]

{"sheet":"Task Schedule Overview","index":1,"n_rows":15,"n_cols":9,"rows_kept":15,"cut":false,"hidden":false,"merged":[]}
["Month","BridgeU Task Type","Task Title","Task Details","Assignment Date","Assigned Students","Student Deadline","Related Topic from Lesson Plans","Related Lesson from Lesson Plans"]
["Aug - Oct","Custom","Applications","1) Go to your shortlist page\n2) Search for Universities you want to add to your shortlist that you have not been matched to (see instructions here https://bridgeu.zendesk.com/hc/en-gb/articles/115001766909-Add-a-university-to-my-Shortlist )\n3) Click apply here for shortlisted universities you want to apply to and \npick a deadline and an application method (ask your advisor if you are unsure). \n4) You may have additional information to look at. Click the name of the university and any additional information will be displayed. Make a note of what it says, including documents required and deadlines. Remember, this is not completely final yet, you still have time to go back and change your mind.\n5) Send your task for review from the homepage","August 15th","G12/ Y13/ DP2","October 7th","Finalize University List",17.0]
["Sep-Jan","Assessments tool ","Learning styles - Assessment test","1) Go to your 'Assessments' page on BridgeU \n2) Click onto the link that takes you to the KTS website https://kts.humanesources.com/ and input the school's Access Key (XXXXXX) to create your account \n3) Take the 'Learning Styles' Assessment. Review your results and then upload the results in BridgeU as a PDF","September 6th","G9/Y10/MYP4","January 12th","Learning Styles",4.0]
["Sep-Feb","Assessments tool ","Personality type - Assessments test","1) Go to your 'Assessments' page on BridgeU \n2) Click onto the link that takes you to the KTS website https://kts.humanesources.com/ and input the school's Access Key (XXXXXX) to create your account \n3) Take the 'Personality Type' Assessment. Review your results and then upload the results in BridgeU as a PDF","September 9th","G10/Y11/MYP5","February 2nd","Personality Types",5.0]
["Sep-Feb","Assessments tool","Multiple intelligences - Assessment test","1) Go to your 'Assessments' page on BridgeU \n2) Click onto the link that takes you to the KTS website https://kts.humanesources.com/ and input the school's Access Key (XXXXXX) to create your account \n3) Take the 'Multiple Intelligences' Assessment. Review your results and then upload the results in BridgeU as a PDF","September 17th","G10/Y11/MYP5","February 7th","Multiple Intelligences",6.0]
["Sep - Dec","University Matches","Build your Shortlist with University Matches","1) Complete the Profile Builder.\n2) Browse matches - shortlist the interesting ones, discard the ones you’re not interested in.\n3) From the shortlist page, add in universities you previously had in mind on the Shortlist page. Instructions here https://bridgeu.zendesk.com/hc/en-gb/articles/115001766909-Add-a-university-to-my-Shortlist\n4) Submit the task for review (from the home page) see here https://bridgeu.zendesk.com/hc/en-gb/articles/115002209733-Send-a-task-to-my-advisor-for-review","September 15th","G11/ Y12/ DP1","December 3rd","University Exploration","11 & 12"]
["Oct - Jan","Custom","Register on the Application website and update your Applications","1) Go to the Applications Page\n2) Update your application list in BridgeU as you prepare your application materials. \n3) Make sure you are registered on the relevant application portal for each university or course.\nE.g. register on the CommonApp/UCAS website\n4) Send your task for review from the homepage. see here: https://bridgeu.zendesk.com/hc/en-gb/articles/115002209733-Send-a-task-to-my-advisor-for-review","October 1st","G12/ Y13/ DP2","October 14th","Application Submission","18 activity 2"]
["Nov - Feb","Shortlist","Research shortlisted universities","1) Go to the shortlist page\n2) For each university or course that you’ve shortlisted, visit their website (see instructions on this article on Researching universities for more information https://help.bridge-u.com/hc/en-gb/articles/360003410377-Part-4-Researching-your-shortlisted-universities-courses)\n3) For each University or course, add one note for each one of the following information:\n3.a - Open days\n3.b - Course content\n3.c - Cost of living\n3.d - What type of assessment is used (projects, exams, coursework...)\n3.e - Scholarship opportunities\n4) Submit the task for review (from the home page) see here: https://bridgeu.zendesk.com/hc/en-gb/articles/115002209733-Send-a-task-to-my-advisor-for-review","November 25th","G11/ Y12/ DP1","February15th","University Shortlist",13.0]
["Jan - April","Assessments tool","Explore and Choose Career paths","1) Go to the careers page on your BridgeU account\n2)  Watch the video in the URL to follow instructions on how to use this tool https://help.bridge-u.com/hc/en-gb/articles/360007478794-Careers-tool-report-upload-video-guide \n3) Look at any professions that sound interesting to you. Look at the related skills to build a picture of potential career paths \n4) Mark ‘interested’ for any careers you want to research further. Try to add 5-10 to your job interests list\n5) Save the Careers Report by clicking on 'View Career Report', then click, 'Print Report' and save the report as a PDF  and attach it to this Assessment for me to review","January 3rd","G10/ Y11/ MYP5","March 23rd","Career Exploration","8&9"]
["Jan-May","Strategy Advisor","Complete the Strategy Advisor","1) Go to the strategy advisor\n2) Add your past experiences. Log them by indicating (watch this Strategy advisor video guide for more details https://help.bridge-u.com/hc/en-gb/articles/360007578253-Strategy-Advisor-video-guide)\n2.a) WHEN - the period (e.g Sep 2018 - Dec 2018); \n2.b) WHERE - The organization/club \n2.c) WHAT - describe the activities you have done\n3) Identify the strategy factors. What qualities have you improved through this experience?\n4) Read about improving your strategy and discuss with your counsellor which strategy factors you should be focusing on\n5)  The Strategy Advisor helps you collect and organize your experiences. This is helpful when writing your applications.\n6) Submit the task for review (from the home page) see here: https://bridgeu.zendesk.com/hc/en-gb/articles/115002209733-Send-a-task-to-my-advisor-for-review","January 15th","G9/ Y10/ MYP4","April 15th","Strengths Exploration",2.0]
["March - June","Assessments tool","Careers and related degree subjects","1) Go to the careers page on your BridgeU account\n2)  Watch the video in the URL to follow instructions on how to use this tool https://help.bridge-u.com/hc/en-gb/articles/360007478794-Careers-tool-report-upload-video-guide\n3) For each one of your chosen careers, click ‘more info’ for your chosen careers to explore the list of related degree subjects.\n4) Mark any degree subjects you want to consider studying to your degree interests list.   \n5) Save the Careers Report by clicking on 'View Career Report', then click, 'Print Report' and save the report as a PDF  and attach it to this Assessment for me to review","March 18th","G10/ Y11/ MYP5","June 15th","Subject Exploration",10.0]
["Mar - Jun","Writing Builder","Prepare and draft your Essay","1) Go to the help center\n2) Find the Personal Statements (UK) guide and the Common Application Essays (US) guide in the help center\n3) read the guides\n4) Print/save a PDF of your strategy report for the countries you intend to apply to.\n5) Use the strategy report to start writing about yourself. Create your first draft of a Personal Statement or Essay in the Writing builder\n5) Submit the task for review\nNote: you can also look at sample peronal statements and essays in the writing builder feature.","March 1st","G11/ Y12/ DP1","April 15th","Personal Statement/ Essay Writing",14.0]
["Jun - Sep","Writing Builder","Finalize your Personal Statement/ Common App essay","1) Go to the writing builder\n2) Read any comments/suggestions on your essay to help them to improve.\n3) Continue to write your own essay using the Writing Builder.\n4) Continue to follow feedback and make these improvements before handing in on time.\n5) Submit your task for review (from the home page) see here: https://bridgeu.zendesk.com/hc/en-gb/articles/115002209733-Send-a-task-to-my-advisor-for-review","June 3rd","G11/ Y12/ DP1","August 15th","Personal Statement/ Essay Writing",15.0]
["March - June","Recommendation requests","Draft a request for a letter of recommendation","1) Go to the recommendations page\n2) Create a request and input a teacher’s email. Save it without sending it. ( see instructions here https://help.bridge-u.com/hc/en-gb/articles/360007636673-Request-a-recommendation-letter-for-Students)\n3) Add max 3 recommendation requests; \n4) Submit your task for review (from the home page) see here: https://bridgeu.zendesk.com/hc/en-gb/articles/115002209733-Send-a-task-to-my-advisor-for-review\n5) I will check before you send.","March 6th","G11/ Y12/ DP1","June 15th","Recommendations/ References",16.0]
["Mar - Jun","Custom","Applications","1) Go to your Applications page\n2) Update your application list in BridgeU as you receive decisions from universities.\n3) If you have received any conditional offers, make sure to enter the terms of the conditions.\n4) Submit your task for review (from the home page) see here: https://bridgeu.zendesk.com/hc/en-gb/articles/115002209733-Send-a-task-to-my-advisor-for-review","March 1st","G12/ Y13/ DP2","June 15th","Offers/ Acceptances",19.0]

{"sheet":"G9 Y10 MYP4","index":2,"n_rows":14,"n_cols":9,"rows_kept":14,"cut":false,"hidden":false,"merged":[]}
[{"$f":"'Task Schedule Overview'!A1","v":"Month"},{"$f":"'Task Schedule Overview'!B1","v":"BridgeU Task Type"},{"$f":"'Task Schedule Overview'!C1","v":"Task Title"},{"$f":"'Task Schedule Overview'!D1","v":"Task Details"},{"$f":"'Task Schedule Overview'!E1","v":"Assignment Date"},{"$f":"'Task Schedule Overview'!F1","v":"Assigned Students"},{"$f":"'Task Schedule Overview'!G1","v":"Student Deadline"},{"$f":"'Task Schedule Overview'!H1","v":"Related Topic from Lesson Plans"},{"$f":"'Task Schedule Overview'!I1","v":"Related Lesson from Lesson Plans"}]
[{"$f":"'Task Schedule Overview'!A3","v":"Sep-Jan"},{"$f":"'Task Schedule Overview'!B3","v":"Assessments tool "},{"$f":"'Task Schedule Overview'!C3","v":"Learning styles - Assessment test"},{"$f":"'Task Schedule Overview'!D3","v":"1) Go to your 'Assessments' page on BridgeU \n2) Click onto the link that takes you to the KTS website https://kts.humanesources.com/ and input the school's Access Key (XXXXXX) to create your account \n3) Take the 'Learning Styles' Assessment. Review your results and then upload the results in BridgeU as a PDF"},{"$f":"'Task Schedule Overview'!E3","v":"September 6th"},{"$f":"'Task Schedule Overview'!F3","v":"G9/Y10/MYP4"},{"$f":"'Task Schedule Overview'!G3","v":"January 12th"},{"$f":"'Task Schedule Overview'!H3","v":"Learning Styles"},{"$f":"'Task Schedule Overview'!I3","v":4}]
[{"$f":"'Task Schedule Overview'!A2","v":"Aug - Oct"},{"$f":"'Task Schedule Overview'!B2","v":"Custom"},{"$f":"'Task Schedule Overview'!C2","v":"Applications"},{"$f":"'Task Schedule Overview'!D2","v":"1) Go to your shortlist page\n2) Search for Universities you want to add to your shortlist that you have not been matched to (see instructions here https://bridgeu.zendesk.com/hc/en-gb/articles/115001766909-Add-a-university-to-my-Shortlist )\n3) Click apply here for shortlisted universities you want to apply to and \npick a deadline and an application method (ask your advisor if you are unsure). \n4) You may have additional information to look at. Click the name of the university and any additional information will be displayed. Make a note of what it says, including documents required and deadlines. Remember, this is not completely final yet, you still have time to go back and change your mind.\n5) Send your task for review from the homepage"},{"$f":"'Task Schedule Overview'!E2","v":"August 15th"},{"$f":"'Task Schedule Overview'!F2","v":"G12/ Y13/ DP2"},{"$f":"'Task Schedule Overview'!G2","v":"October 7th"},{"$f":"'Task Schedule Overview'!H2","v":"Finalize University List"},{"$f":"'Task Schedule Overview'!I2","v":17}]
[{"$f":"'Task Schedule Overview'!A6","v":"Sep - Dec"},{"$f":"'Task Schedule Overview'!B6","v":"University Matches"},{"$f":"'Task Schedule Overview'!C6","v":"Build your Shortlist with University Matches"},{"$f":"'Task Schedule Overview'!D6","v":"1) Complete the Profile Builder.\n2) Browse matches - shortlist the interesting ones, discard the ones you’re not interested in.\n3) From the shortlist page, add in universities you previously had in mind on the Shortlist page. Instructions here https://bridgeu.zendesk.com/hc/en-gb/articles/115001766909-Add-a-university-to-my-Shortlist\n4) Submit the task for review (from the home page) see here https://bridgeu.zendesk.com/hc/en-gb/articles/115002209733-Send-a-task-to-my-advisor-for-review"},{"$f":"'Task Schedule Overview'!E6","v":"September 15th"},{"$f":"'Task Schedule Overview'!F6","v":"G11/ Y12/ DP1"},{"$f":"'Task Schedule Overview'!G6","v":"December 3rd"},{"$f":"'Task Schedule Overview'!H6","v":"University Exploration"},{"$f":"'Task Schedule Overview'!I6","v":"11 & 12"}]
[{"$f":"'Task Schedule Overview'!A7","v":"Oct - Jan"},{"$f":"'Task Schedule Overview'!B7","v":"Custom"},{"$f":"'Task Schedule Overview'!C7","v":"Register on the Application website and update your Applications"},{"$f":"'Task Schedule Overview'!D7","v":"1) Go to the Applications Page\n2) Update your application list in BridgeU as you prepare your application materials. \n3) Make sure you are registered on the relevant application portal for each university or course.\nE.g. register on the CommonApp/UCAS website\n4) Send your task for review from the homepage. see here: https://bridgeu.zendesk.com/hc/en-gb/articles/115002209733-Send-a-task-to-my-advisor-for-review"},{"$f":"'Task Schedule Overview'!E7","v":"October 1st"},{"$f":"'Task Schedule Overview'!F7","v":"G12/ Y13/ DP2"},{"$f":"'Task Schedule Overview'!G7","v":"October 14th"},{"$f":"'Task Schedule Overview'!H7","v":"Application Submission"},{"$f":"'Task Schedule Overview'!I7","v":"18 activity 2"}]
[{"$f":"'Task Schedule Overview'!A8","v":"Nov - Feb"},{"$f":"'Task Schedule Overview'!B8","v":"Shortlist"},{"$f":"'Task Schedule Overview'!C8","v":"Research shortlisted universities"},{"$f":"'Task Schedule Overview'!D8","v":"1) Go to the shortlist page\n2) For each university or course that you’ve shortlisted, visit their website (see instructions on this article on Researching universities for more information https://help.bridge-u.com/hc/en-gb/articles/360003410377-Part-4-Researching-your-shortlisted-universities-courses)\n3) For each University or course, add one note for each one of the following information:\n3.a - Open days\n3.b - Course content\n3.c - Cost of living\n3.d - What type of assessment is used (projects, exams, coursework...)\n3.e - Scholarship opportunities\n4) Submit the task for review (from the home page) see here: https://bridgeu.zendesk.com/hc/en-gb/articles/115002209733-Send-a-task-to-my-advisor-for-review"},{"$f":"'Task Schedule Overview'!E8","v":"November 25th"},{"$f":"'Task Schedule Overview'!F8","v":"G11/ Y12/ DP1"},{"$f":"'Task Schedule Overview'!G8","v":"February15th"},{"$f":"'Task Schedule Overview'!H8","v":"University Shortlist"},{"$f":"'Task Schedule Overview'!I8","v":13}]
[{"$f":"#REF!","v":"#REF!"},"#REF!","#REF!","#REF!","#REF!","#REF!","#REF!","#REF!","#REF!"]
[{"$f":"'Task Schedule Overview'!A9","v":"Jan - April"},{"$f":"'Task Schedule Overview'!B9","v":"Assessments tool"},{"$f":"'Task Schedule Overview'!C9","v":"Explore and Choose Career paths"},{"$f":"'Task Schedule Overview'!D9","v":"1) Go to the careers page on your BridgeU account\n2)  Watch the video in the URL to follow instructions on how to use this tool https://help.bridge-u.com/hc/en-gb/articles/360007478794-Careers-tool-report-upload-video-guide \n3) Look at any professions that sound interesting to you. Look at the related skills to build a picture of potential career paths \n4) Mark ‘interested’ for any careers you want to research further. Try to add 5-10 to your job interests list\n5) Save the Careers Report by clicking on 'View Career Report', then click, 'Print Report' and save the report as a PDF  and attach it to this Assessment for me to review"},{"$f":"'Task Schedule Overview'!E9","v":"January 3rd"},{"$f":"'Task Schedule Overview'!F9","v":"G10/ Y11/ MYP5"},{"$f":"'Task Schedule Overview'!G9","v":"March 23rd"},{"$f":"'Task Schedule Overview'!H9","v":"Career Exploration"},{"$f":"'Task Schedule Overview'!I9","v":"8&9"}]
[{"$f":"'Task Schedule Overview'!A10","v":"Jan-May"},{"$f":"'Task Schedule Overview'!B10","v":"Strategy Advisor"},{"$f":"'Task Schedule Overview'!C10","v":"Complete the Strategy Advisor"},{"$f":"'Task Schedule Overview'!D10","v":"1) Go to the strategy advisor\n2) Add your past experiences. Log them by indicating (watch this Strategy advisor video guide for more details https://help.bridge-u.com/hc/en-gb/articles/360007578253-Strategy-Advisor-video-guide)\n2.a) WHEN - the period (e.g Sep 2018 - Dec 2018); \n2.b) WHERE - The organization/club \n2.c) WHAT - describe the activities you have done\n3) Identify the strategy factors. What qualities have you improved through this experience?\n4) Read about improving your strategy and discuss with your counsellor which strategy factors you should be focusing on\n5)  The Strategy Advisor helps you collect and organize your experiences. This is helpful when writing your applications.\n6) Submit the task for review (from the home page) see here: https://bridgeu.zendesk.com/hc/en-gb/articles/115002209733-Send-a-task-to-my-advisor-for-review"},{"$f":"'Task Schedule Overview'!E10","v":"January 15th"},{"$f":"'Task Schedule Overview'!F10","v":"G9/ Y10/ MYP4"},{"$f":"'Task Schedule Overview'!G10","v":"April 15th"},{"$f":"'Task Schedule Overview'!H10","v":"Strengths Exploration"},{"$f":"'Task Schedule Overview'!I10","v":2}]
[{"$f":"'Task Schedule Overview'!A11","v":"March - June"},{"$f":"'Task Schedule Overview'!B11","v":"Assessments tool"},{"$f":"'Task Schedule Overview'!C11","v":"Careers and related degree subjects"},{"$f":"'Task Schedule Overview'!D11","v":"1) Go to the careers page on your BridgeU account\n2)  Watch the video in the URL to follow instructions on how to use this tool https://help.bridge-u.com/hc/en-gb/articles/360007478794-Careers-tool-report-upload-video-guide\n3) For each one of your chosen careers, click ‘more info’ for your chosen careers to explore the list of related degree subjects.\n4) Mark any degree subjects you want to consider studying to your degree interests list.   \n5) Save the Careers Report by clicking on 'View Career Report', then click, 'Print Report' and save the report as a PDF  and attach it to this Assessment for me to review"},{"$f":"'Task Schedule Overview'!E11","v":"March 18th"},{"$f":"'Task Schedule Overview'!F11","v":"G10/ Y11/ MYP5"},{"$f":"'Task Schedule Overview'!G11","v":"June 15th"},{"$f":"'Task Schedule Overview'!H11","v":"Subject Exploration"},{"$f":"'Task Schedule Overview'!I11","v":10}]
[{"$f":"'Task Schedule Overview'!A12","v":"Mar - Jun"},{"$f":"'Task Schedule Overview'!B12","v":"Writing Builder"},{"$f":"'Task Schedule Overview'!C12","v":"Prepare and draft your Essay"},{"$f":"'Task Schedule Overview'!D12","v":"1) Go to the help center\n2) Find the Personal Statements (UK) guide and the Common Application Essays (US) guide in the help center\n3) read the guides\n4) Print/save a PDF of your strategy report for the countries you intend to apply to.\n5) Use the strategy report to start writing about yourself. Create your first draft of a Personal Statement or Essay in the Writing builder\n5) Submit the task for review\nNote: you can also look at sample peronal statements and essays in the writing builder feature."},{"$f":"'Task Schedule Overview'!E12","v":"March 1st"},{"$f":"'Task Schedule Overview'!F12","v":"G11/ Y12/ DP1"},{"$f":"'Task Schedule Overview'!G12","v":"April 15th"},{"$f":"'Task Schedule Overview'!H12","v":"Personal Statement/ Essay Writing"},{"$f":"'Task Schedule Overview'!I12","v":14}]
[{"$f":"'Task Schedule Overview'!A13","v":"Jun - Sep"},{"$f":"'Task Schedule Overview'!B13","v":"Writing Builder"},{"$f":"'Task Schedule Overview'!C13","v":"Finalize your Personal Statement/ Common App essay"},{"$f":"'Task Schedule Overview'!D13","v":"1) Go to the writing builder\n2) Read any comments/suggestions on your essay to help them to improve.\n3) Continue to write your own essay using the Writing Builder.\n4) Continue to follow feedback and make these improvements before handing in on time.\n5) Submit your task for review (from the home page) see here: https://bridgeu.zendesk.com/hc/en-gb/articles/115002209733-Send-a-task-to-my-advisor-for-review"},{"$f":"'Task Schedule Overview'!E13","v":"June 3rd"},{"$f":"'Task Schedule Overview'!F13","v":"G11/ Y12/ DP1"},{"$f":"'Task Schedule Overview'!G13","v":"August 15th"},{"$f":"'Task Schedule Overview'!H13","v":"Personal Statement/ Essay Writing"},{"$f":"'Task Schedule Overview'!I13","v":15}]
[{"$f":"'Task Schedule Overview'!A14","v":"March - June"},{"$f":"'Task Schedule Overview'!B14","v":"Recommendation requests"},{"$f":"'Task Schedule Overview'!C14","v":"Draft a request for a letter of recommendation"},{"$f":"'Task Schedule Overview'!D14","v":"1) Go to the recommendations page\n2) Create a request and input a teacher’s email. Save it without sending it. ( see instructions here https://help.bridge-u.com/hc/en-gb/articles/360007636673-Request-a-recommendation-letter-for-Students)\n3) Add max 3 recommendation requests; \n4) Submit your task for review (from the home page) see here: https://bridgeu.zendesk.com/hc/en-gb/articles/115002209733-Send-a-task-to-my-advisor-for-review\n5) I will check before you send."},{"$f":"'Task Schedule Overview'!E14","v":"March 6th"},{"$f":"'Task Schedule Overview'!F14","v":"G11/ Y12/ DP1"},{"$f":"'Task Schedule Overview'!G14","v":"June 15th"},{"$f":"'Task Schedule Overview'!H14","v":"Recommendations/ References"},{"$f":"'Task Schedule Overview'!I14","v":16}]
[{"$f":"'Task Schedule Overview'!A15","v":"Mar - Jun"},{"$f":"'Task Schedule Overview'!B15","v":"Custom"},{"$f":"'Task Schedule Overview'!C15","v":"Applications"},{"$f":"'Task Schedule Overview'!D15","v":"1) Go to your Applications page\n2) Update your application list in BridgeU as you receive decisions from universities.\n3) If you have received any conditional offers, make sure to enter the terms of the conditions.\n4) Submit your task for review (from the home page) see here: https://bridgeu.zendesk.com/hc/en-gb/articles/115002209733-Send-a-task-to-my-advisor-for-review"},{"$f":"'Task Schedule Overview'!E15","v":"March 1st"},{"$f":"'Task Schedule Overview'!F15","v":"G12/ Y13/ DP2"},{"$f":"'Task Schedule Overview'!G15","v":"June 15th"},{"$f":"'Task Schedule Overview'!H15","v":"Offers/ Acceptances"},{"$f":"'Task Schedule Overview'!I15","v":19}]

{"sheet":"G10 Y11 MYP5","index":3,"n_rows":14,"n_cols":9,"rows_kept":14,"cut":false,"hidden":false,"merged":[]}
[{"$f":"'Task Schedule Overview'!A1","v":"Month"},{"$f":"'Task Schedule Overview'!B1","v":"BridgeU Task Type"},{"$f":"'Task Schedule Overview'!C1","v":"Task Title"},{"$f":"'Task Schedule Overview'!D1","v":"Task Details"},{"$f":"'Task Schedule Overview'!E1","v":"Assignment Date"},{"$f":"'Task Schedule Overview'!F1","v":"Assigned Students"},{"$f":"'Task Schedule Overview'!G1","v":"Student Deadline"},{"$f":"'Task Schedule Overview'!H1","v":"Related Topic from Lesson Plans"},{"$f":"'Task Schedule Overview'!I1","v":"Related Lesson from Lesson Plans"}]
[{"$f":"'Task Schedule Overview'!A4","v":"Sep-Feb"},{"$f":"'Task Schedule Overview'!B4","v":"Assessments tool "},{"$f":"'Task Schedule Overview'!C4","v":"Personality type - Assessments test"},{"$f":"'Task Schedule Overview'!D4","v":"1) Go to your 'Assessments' page on BridgeU \n2) Click onto the link that takes you to the KTS website https://kts.humanesources.com/ and input the school's Access Key (XXXXXX) to create your account \n3) Take the 'Personality Type' Assessment. Review your results and then upload the results in BridgeU as a PDF"},{"$f":"'Task Schedule Overview'!E4","v":"September 9th"},{"$f":"'Task Schedule Overview'!F4","v":"G10/Y11/MYP5"},{"$f":"'Task Schedule Overview'!G4","v":"February 2nd"},{"$f":"'Task Schedule Overview'!H4","v":"Personality Types"},{"$f":"'Task Schedule Overview'!I4","v":5}]
[{"$f":"'Task Schedule Overview'!A5","v":"Sep-Feb"},{"$f":"'Task Schedule Overview'!B5","v":"Assessments tool"},{"$f":"'Task Schedule Overview'!C5","v":"Multiple intelligences - Assessment test"},{"$f":"'Task Schedule Overview'!D5","v":"1) Go to your 'Assessments' page on BridgeU \n2) Click onto the link that takes you to the KTS website https://kts.humanesources.com/ and input the school's Access Key (XXXXXX) to create your account \n3) Take the 'Multiple Intelligences' Assessment. Review your results and then upload the results in BridgeU as a PDF"},{"$f":"'Task Schedule Overview'!E5","v":"September 17th"},{"$f":"'Task Schedule Overview'!F5","v":"G10/Y11/MYP5"},{"$f":"'Task Schedule Overview'!G5","v":"February 7th"},{"$f":"'Task Schedule Overview'!H5","v":"Multiple Intelligences"},{"$f":"'Task Schedule Overview'!I5","v":6}]
[{"$f":"'Task Schedule Overview'!A2","v":"Aug - Oct"},{"$f":"'Task Schedule Overview'!B2","v":"Custom"},{"$f":"'Task Schedule Overview'!C2","v":"Applications"},{"$f":"'Task Schedule Overview'!D2","v":"1) Go to your shortlist page\n2) Search for Universities you want to add to your shortlist that you have not been matched to (see instructions here https://bridgeu.zendesk.com/hc/en-gb/articles/115001766909-Add-a-university-to-my-Shortlist )\n3) Click apply here for shortlisted universities you want to apply to and \npick a deadline and an application method (ask your advisor if you are unsure). \n4) You may have additional information to look at. Click the name of the university and any additional information will be displayed. Make a note of what it says, including documents required and deadlines. Remember, this is not completely final yet, you still have time to go back and change your mind.\n5) Send your task for review from the homepage"},{"$f":"'Task Schedule Overview'!E2","v":"August 15th"},{"$f":"'Task Schedule Overview'!F2","v":"G12/ Y13/ DP2"},{"$f":"'Task Schedule Overview'!G2","v":"October 7th"},{"$f":"'Task Schedule Overview'!H2","v":"Finalize University List"},{"$f":"'Task Schedule Overview'!I2","v":17}]
[{"$f":"'Task Schedule Overview'!A6","v":"Sep - Dec"},{"$f":"'Task Schedule Overview'!B6","v":"University Matches"},{"$f":"'Task Schedule Overview'!C6","v":"Build your Shortlist with University Matches"},{"$f":"'Task Schedule Overview'!D6","v":"1) Complete the Profile Builder.\n2) Browse matches - shortlist the interesting ones, discard the ones you’re not interested in.\n3) From the shortlist page, add in universities you previously had in mind on the Shortlist page. Instructions here https://bridgeu.zendesk.com/hc/en-gb/articles/115001766909-Add-a-university-to-my-Shortlist\n4) Submit the task for review (from the home page) see here https://bridgeu.zendesk.com/hc/en-gb/articles/115002209733-Send-a-task-to-my-advisor-for-review"},{"$f":"'Task Schedule Overview'!E6","v":"September 15th"},{"$f":"'Task Schedule Overview'!F6","v":"G11/ Y12/ DP1"},{"$f":"'Task Schedule Overview'!G6","v":"December 3rd"},{"$f":"'Task Schedule Overview'!H6","v":"University Exploration"},{"$f":"'Task Schedule Overview'!I6","v":"11 & 12"}]
[{"$f":"'Task Schedule Overview'!A7","v":"Oct - Jan"},{"$f":"'Task Schedule Overview'!B7","v":"Custom"},{"$f":"'Task Schedule Overview'!C7","v":"Register on the Application website and update your Applications"},{"$f":"'Task Schedule Overview'!D7","v":"1) Go to the Applications Page\n2) Update your application list in BridgeU as you prepare your application materials. \n3) Make sure you are registered on the relevant application portal for each university or course.\nE.g. register on the CommonApp/UCAS website\n4) Send your task for review from the homepage. see here: https://bridgeu.zendesk.com/hc/en-gb/articles/115002209733-Send-a-task-to-my-advisor-for-review"},{"$f":"'Task Schedule Overview'!E7","v":"October 1st"},{"$f":"'Task Schedule Overview'!F7","v":"G12/ Y13/ DP2"},{"$f":"'Task Schedule Overview'!G7","v":"October 14th"},{"$f":"'Task Schedule Overview'!H7","v":"Application Submission"},{"$f":"'Task Schedule Overview'!I7","v":"18 activity 2"}]
[{"$f":"'Task Schedule Overview'!A8","v":"Nov - Feb"},{"$f":"'Task Schedule Overview'!B8","v":"Shortlist"},{"$f":"'Task Schedule Overview'!C8","v":"Research shortlisted universities"},{"$f":"'Task Schedule Overview'!D8","v":"1) Go to the shortlist page\n2) For each university or course that you’ve shortlisted, visit their website (see instructions on this article on Researching universities for more information https://help.bridge-u.com/hc/en-gb/articles/360003410377-Part-4-Researching-your-shortlisted-universities-courses)\n3) For each University or course, add one note for each one of the following information:\n3.a - Open days\n3.b - Course content\n3.c - Cost of living\n3.d - What type of assessment is used (projects, exams, coursework...)\n3.e - Scholarship opportunities\n4) Submit the task for review (from the home page) see here: https://bridgeu.zendesk.com/hc/en-gb/articles/115002209733-Send-a-task-to-my-advisor-for-review"},{"$f":"'Task Schedule Overview'!E8","v":"November 25th"},{"$f":"'Task Schedule Overview'!F8","v":"G11/ Y12/ DP1"},{"$f":"'Task Schedule Overview'!G8","v":"February15th"},{"$f":"'Task Schedule Overview'!H8","v":"University Shortlist"},{"$f":"'Task Schedule Overview'!I8","v":13}]
[{"$f":"'Task Schedule Overview'!A9","v":"Jan - April"},{"$f":"'Task Schedule Overview'!B9","v":"Assessments tool"},{"$f":"'Task Schedule Overview'!C9","v":"Explore and Choose Career paths"},{"$f":"'Task Schedule Overview'!D9","v":"1) Go to the careers page on your BridgeU account\n2)  Watch the video in the URL to follow instructions on how to use this tool https://help.bridge-u.com/hc/en-gb/articles/360007478794-Careers-tool-report-upload-video-guide \n3) Look at any professions that sound interesting to you. Look at the related skills to build a picture of potential career paths \n4) Mark ‘interested’ for any careers you want to research further. Try to add 5-10 to your job interests list\n5) Save the Careers Report by clicking on 'View Career Report', then click, 'Print Report' and save the report as a PDF  and attach it to this Assessment for me to review"},{"$f":"'Task Schedule Overview'!E9","v":"January 3rd"},{"$f":"'Task Schedule Overview'!F9","v":"G10/ Y11/ MYP5"},{"$f":"'Task Schedule Overview'!G9","v":"March 23rd"},{"$f":"'Task Schedule Overview'!H9","v":"Career Exploration"},{"$f":"'Task Schedule Overview'!I9","v":"8&9"}]
[{"$f":"'Task Schedule Overview'!A10","v":"Jan-May"},{"$f":"'Task Schedule Overview'!B10","v":"Strategy Advisor"},{"$f":"'Task Schedule Overview'!C10","v":"Complete the Strategy Advisor"},{"$f":"'Task Schedule Overview'!D10","v":"1) Go to the strategy advisor\n2) Add your past experiences. Log them by indicating (watch this Strategy advisor video guide for more details https://help.bridge-u.com/hc/en-gb/articles/360007578253-Strategy-Advisor-video-guide)\n2.a) WHEN - the period (e.g Sep 2018 - Dec 2018); \n2.b) WHERE - The organization/club \n2.c) WHAT - describe the activities you have done\n3) Identify the strategy factors. What qualities have you improved through this experience?\n4) Read about improving your strategy and discuss with your counsellor which strategy factors you should be focusing on\n5)  The Strategy Advisor helps you collect and organize your experiences. This is helpful when writing your applications.\n6) Submit the task for review (from the home page) see here: https://bridgeu.zendesk.com/hc/en-gb/articles/115002209733-Send-a-task-to-my-advisor-for-review"},{"$f":"'Task Schedule Overview'!E10","v":"January 15th"},{"$f":"'Task Schedule Overview'!F10","v":"G9/ Y10/ MYP4"},{"$f":"'Task Schedule Overview'!G10","v":"April 15th"},{"$f":"'Task Schedule Overview'!H10","v":"Strengths Exploration"},{"$f":"'Task Schedule Overview'!I10","v":2}]
[{"$f":"'Task Schedule Overview'!A11","v":"March - June"},{"$f":"'Task Schedule Overview'!B11","v":"Assessments tool"},{"$f":"'Task Schedule Overview'!C11","v":"Careers and related degree subjects"},{"$f":"'Task Schedule Overview'!D11","v":"1) Go to the careers page on your BridgeU account\n2)  Watch the video in the URL to follow instructions on how to use this tool https://help.bridge-u.com/hc/en-gb/articles/360007478794-Careers-tool-report-upload-video-guide\n3) For each one of your chosen careers, click ‘more info’ for your chosen careers to explore the list of related degree subjects.\n4) Mark any degree subjects you want to consider studying to your degree interests list.   \n5) Save the Careers Report by clicking on 'View Career Report', then click, 'Print Report' and save the report as a PDF  and attach it to this Assessment for me to review"},{"$f":"'Task Schedule Overview'!E11","v":"March 18th"},{"$f":"'Task Schedule Overview'!F11","v":"G10/ Y11/ MYP5"},{"$f":"'Task Schedule Overview'!G11","v":"June 15th"},{"$f":"'Task Schedule Overview'!H11","v":"Subject Exploration"},{"$f":"'Task Schedule Overview'!I11","v":10}]
[{"$f":"'Task Schedule Overview'!A12","v":"Mar - Jun"},{"$f":"'Task Schedule Overview'!B12","v":"Writing Builder"},{"$f":"'Task Schedule Overview'!C12","v":"Prepare and draft your Essay"},{"$f":"'Task Schedule Overview'!D12","v":"1) Go to the help center\n2) Find the Personal Statements (UK) guide and the Common Application Essays (US) guide in the help center\n3) read the guides\n4) Print/save a PDF of your strategy report for the countries you intend to apply to.\n5) Use the strategy report to start writing about yourself. Create your first draft of a Personal Statement or Essay in the Writing builder\n5) Submit the task for review\nNote: you can also look at sample peronal statements and essays in the writing builder feature."},{"$f":"'Task Schedule Overview'!E12","v":"March 1st"},{"$f":"'Task Schedule Overview'!F12","v":"G11/ Y12/ DP1"},{"$f":"'Task Schedule Overview'!G12","v":"April 15th"},{"$f":"'Task Schedule Overview'!H12","v":"Personal Statement/ Essay Writing"},{"$f":"'Task Schedule Overview'!I12","v":14}]
[{"$f":"'Task Schedule Overview'!A13","v":"Jun - Sep"},{"$f":"'Task Schedule Overview'!B13","v":"Writing Builder"},{"$f":"'Task Schedule Overview'!C13","v":"Finalize your Personal Statement/ Common App essay"},{"$f":"'Task Schedule Overview'!D13","v":"1) Go to the writing builder\n2) Read any comments/suggestions on your essay to help them to improve.\n3) Continue to write your own essay using the Writing Builder.\n4) Continue to follow feedback and make these improvements before handing in on time.\n5) Submit your task for review (from the home page) see here: https://bridgeu.zendesk.com/hc/en-gb/articles/115002209733-Send-a-task-to-my-advisor-for-review"},{"$f":"'Task Schedule Overview'!E13","v":"June 3rd"},{"$f":"'Task Schedule Overview'!F13","v":"G11/ Y12/ DP1"},{"$f":"'Task Schedule Overview'!G13","v":"August 15th"},{"$f":"'Task Schedule Overview'!H13","v":"Personal Statement/ Essay Writing"},{"$f":"'Task Schedule Overview'!I13","v":15}]
[{"$f":"'Task Schedule Overview'!A14","v":"March - June"},{"$f":"'Task Schedule Overview'!B14","v":"Recommendation requests"},{"$f":"'Task Schedule Overview'!C14","v":"Draft a request for a letter of recommendation"},{"$f":"'Task Schedule Overview'!D14","v":"1) Go to the recommendations page\n2) Create a request and input a teacher’s email. Save it without sending it. ( see instructions here https://help.bridge-u.com/hc/en-gb/articles/360007636673-Request-a-recommendation-letter-for-Students)\n3) Add max 3 recommendation requests; \n4) Submit your task for review (from the home page) see here: https://bridgeu.zendesk.com/hc/en-gb/articles/115002209733-Send-a-task-to-my-advisor-for-review\n5) I will check before you send."},{"$f":"'Task Schedule Overview'!E14","v":"March 6th"},{"$f":"'Task Schedule Overview'!F14","v":"G11/ Y12/ DP1"},{"$f":"'Task Schedule Overview'!G14","v":"June 15th"},{"$f":"'Task Schedule Overview'!H14","v":"Recommendations/ References"},{"$f":"'Task Schedule Overview'!I14","v":16}]
[{"$f":"'Task Schedule Overview'!A15","v":"Mar - Jun"},{"$f":"'Task Schedule Overview'!B15","v":"Custom"},{"$f":"'Task Schedule Overview'!C15","v":"Applications"},{"$f":"'Task Schedule Overview'!D15","v":"1) Go to your Applications page\n2) Update your application list in BridgeU as you receive decisions from universities.\n3) If you have received any conditional offers, make sure to enter the terms of the conditions.\n4) Submit your task for review (from the home page) see here: https://bridgeu.zendesk.com/hc/en-gb/articles/115002209733-Send-a-task-to-my-advisor-for-review"},{"$f":"'Task Schedule Overview'!E15","v":"March 1st"},{"$f":"'Task Schedule Overview'!F15","v":"G12/ Y13/ DP2"},{"$f":"'Task Schedule Overview'!G15","v":"June 15th"},{"$f":"'Task Schedule Overview'!H15","v":"Offers/ Acceptances"},{"$f":"'Task Schedule Overview'!I15","v":19}]

{"sheet":"G11 Y12 DP1","index":4,"n_rows":13,"n_cols":9,"rows_kept":13,"cut":false,"hidden":false,"merged":[]}
[{"$f":"'Task Schedule Overview'!A1","v":"Month"},{"$f":"'Task Schedule Overview'!B1","v":"BridgeU Task Type"},{"$f":"'Task Schedule Overview'!C1","v":"Task Title"},{"$f":"'Task Schedule Overview'!D1","v":"Task Details"},{"$f":"'Task Schedule Overview'!E1","v":"Assignment Date"},{"$f":"'Task Schedule Overview'!F1","v":"Assigned Students"},{"$f":"'Task Schedule Overview'!G1","v":"Student Deadline"},{"$f":"'Task Schedule Overview'!H1","v":"Related Topic from Lesson Plans"},{"$f":"'Task Schedule Overview'!I1","v":"Related Lesson from Lesson Plans"}]
[{"$f":"'Task Schedule Overview'!A2","v":"Aug - Oct"},{"$f":"'Task Schedule Overview'!B2","v":"Custom"},{"$f":"'Task Schedule Overview'!C2","v":"Applications"},{"$f":"'Task Schedule Overview'!D2","v":"1) Go to your shortlist page\n2) Search for Universities you want to add to your shortlist that you have not been matched to (see instructions here https://bridgeu.zendesk.com/hc/en-gb/articles/115001766909-Add-a-university-to-my-Shortlist )\n3) Click apply here for shortlisted universities you want to apply to and \npick a deadline and an application method (ask your advisor if you are unsure). \n4) You may have additional information to look at. Click the name of the university and any additional information will be displayed. Make a note of what it says, including documents required and deadlines. Remember, this is not completely final yet, you still have time to go back and change your mind.\n5) Send your task for review from the homepage"},{"$f":"'Task Schedule Overview'!E2","v":"August 15th"},{"$f":"'Task Schedule Overview'!F2","v":"G12/ Y13/ DP2"},{"$f":"'Task Schedule Overview'!G2","v":"October 7th"},{"$f":"'Task Schedule Overview'!H2","v":"Finalize University List"},{"$f":"'Task Schedule Overview'!I2","v":17}]
[{"$f":"'Task Schedule Overview'!A6","v":"Sep - Dec"},{"$f":"'Task Schedule Overview'!B6","v":"University Matches"},{"$f":"'Task Schedule Overview'!C6","v":"Build your Shortlist with University Matches"},{"$f":"'Task Schedule Overview'!D6","v":"1) Complete the Profile Builder.\n2) Browse matches - shortlist the interesting ones, discard the ones you’re not interested in.\n3) From the shortlist page, add in universities you previously had in mind on the Shortlist page. Instructions here https://bridgeu.zendesk.com/hc/en-gb/articles/115001766909-Add-a-university-to-my-Shortlist\n4) Submit the task for review (from the home page) see here https://bridgeu.zendesk.com/hc/en-gb/articles/115002209733-Send-a-task-to-my-advisor-for-review"},{"$f":"'Task Schedule Overview'!E6","v":"September 15th"},{"$f":"'Task Schedule Overview'!F6","v":"G11/ Y12/ DP1"},{"$f":"'Task Schedule Overview'!G6","v":"December 3rd"},{"$f":"'Task Schedule Overview'!H6","v":"University Exploration"},{"$f":"'Task Schedule Overview'!I6","v":"11 & 12"}]
[{"$f":"'Task Schedule Overview'!A7","v":"Oct - Jan"},{"$f":"'Task Schedule Overview'!B7","v":"Custom"},{"$f":"'Task Schedule Overview'!C7","v":"Register on the Application website and update your Applications"},{"$f":"'Task Schedule Overview'!D7","v":"1) Go to the Applications Page\n2) Update your application list in BridgeU as you prepare your application materials. \n3) Make sure you are registered on the relevant application portal for each university or course.\nE.g. register on the CommonApp/UCAS website\n4) Send your task for review from the homepage. see here: https://bridgeu.zendesk.com/hc/en-gb/articles/115002209733-Send-a-task-to-my-advisor-for-review"},{"$f":"'Task Schedule Overview'!E7","v":"October 1st"},{"$f":"'Task Schedule Overview'!F7","v":"G12/ Y13/ DP2"},{"$f":"'Task Schedule Overview'!G7","v":"October 14th"},{"$f":"'Task Schedule Overview'!H7","v":"Application Submission"},{"$f":"'Task Schedule Overview'!I7","v":"18 activity 2"}]
[{"$f":"'Task Schedule Overview'!A8","v":"Nov - Feb"},{"$f":"'Task Schedule Overview'!B8","v":"Shortlist"},{"$f":"'Task Schedule Overview'!C8","v":"Research shortlisted universities"},{"$f":"'Task Schedule Overview'!D8","v":"1) Go to the shortlist page\n2) For each university or course that you’ve shortlisted, visit their website (see instructions on this article on Researching universities for more information https://help.bridge-u.com/hc/en-gb/articles/360003410377-Part-4-Researching-your-shortlisted-universities-courses)\n3) For each University or course, add one note for each one of the following information:\n3.a - Open days\n3.b - Course content\n3.c - Cost of living\n3.d - What type of assessment is used (projects, exams, coursework...)\n3.e - Scholarship opportunities\n4) Submit the task for review (from the home page) see here: https://bridgeu.zendesk.com/hc/en-gb/articles/115002209733-Send-a-task-to-my-advisor-for-review"},{"$f":"'Task Schedule Overview'!E8","v":"November 25th"},{"$f":"'Task Schedule Overview'!F8","v":"G11/ Y12/ DP1"},{"$f":"'Task Schedule Overview'!G8","v":"February15th"},{"$f":"'Task Schedule Overview'!H8","v":"University Shortlist"},{"$f":"'Task Schedule Overview'!I8","v":13}]
[{"$f":"#REF!","v":"#REF!"},"#REF!","#REF!","#REF!","#REF!","#REF!","#REF!","#REF!","#REF!"]
[{"$f":"'Task Schedule Overview'!A9","v":"Jan - April"},{"$f":"'Task Schedule Overview'!B9","v":"Assessments tool"},{"$f":"'Task Schedule Overview'!C9","v":"Explore and Choose Career paths"},{"$f":"'Task Schedule Overview'!D9","v":"1) Go to the careers page on your BridgeU account\n2)  Watch the video in the URL to follow instructions on how to use this tool https://help.bridge-u.com/hc/en-gb/articles/360007478794-Careers-tool-report-upload-video-guide \n3) Look at any professions that sound interesting to you. Look at the related skills to build a picture of potential career paths \n4) Mark ‘interested’ for any careers you want to research further. Try to add 5-10 to your job interests list\n5) Save the Careers Report by clicking on 'View Career Report', then click, 'Print Report' and save the report as a PDF  and attach it to this Assessment for me to review"},{"$f":"'Task Schedule Overview'!E9","v":"January 3rd"},{"$f":"'Task Schedule Overview'!F9","v":"G10/ Y11/ MYP5"},{"$f":"'Task Schedule Overview'!G9","v":"March 23rd"},{"$f":"'Task Schedule Overview'!H9","v":"Career Exploration"},{"$f":"'Task Schedule Overview'!I9","v":"8&9"}]
[{"$f":"'Task Schedule Overview'!A10","v":"Jan-May"},{"$f":"'Task Schedule Overview'!B10","v":"Strategy Advisor"},{"$f":"'Task Schedule Overview'!C10","v":"Complete the Strategy Advisor"},{"$f":"'Task Schedule Overview'!D10","v":"1) Go to the strategy advisor\n2) Add your past experiences. Log them by indicating (watch this Strategy advisor video guide for more details https://help.bridge-u.com/hc/en-gb/articles/360007578253-Strategy-Advisor-video-guide)\n2.a) WHEN - the period (e.g Sep 2018 - Dec 2018); \n2.b) WHERE - The organization/club \n2.c) WHAT - describe the activities you have done\n3) Identify the strategy factors. What qualities have you improved through this experience?\n4) Read about improving your strategy and discuss with your counsellor which strategy factors you should be focusing on\n5)  The Strategy Advisor helps you collect and organize your experiences. This is helpful when writing your applications.\n6) Submit the task for review (from the home page) see here: https://bridgeu.zendesk.com/hc/en-gb/articles/115002209733-Send-a-task-to-my-advisor-for-review"},{"$f":"'Task Schedule Overview'!E10","v":"January 15th"},{"$f":"'Task Schedule Overview'!F10","v":"G9/ Y10/ MYP4"},{"$f":"'Task Schedule Overview'!G10","v":"April 15th"},{"$f":"'Task Schedule Overview'!H10","v":"Strengths Exploration"},{"$f":"'Task Schedule Overview'!I10","v":2}]
[{"$f":"'Task Schedule Overview'!A11","v":"March - June"},{"$f":"'Task Schedule Overview'!B11","v":"Assessments tool"},{"$f":"'Task Schedule Overview'!C11","v":"Careers and related degree subjects"},{"$f":"'Task Schedule Overview'!D11","v":"1) Go to the careers page on your BridgeU account\n2)  Watch the video in the URL to follow instructions on how to use this tool https://help.bridge-u.com/hc/en-gb/articles/360007478794-Careers-tool-report-upload-video-guide\n3) For each one of your chosen careers, click ‘more info’ for your chosen careers to explore the list of related degree subjects.\n4) Mark any degree subjects you want to consider studying to your degree interests list.   \n5) Save the Careers Report by clicking on 'View Career Report', then click, 'Print Report' and save the report as a PDF  and attach it to this Assessment for me to review"},{"$f":"'Task Schedule Overview'!E11","v":"March 18th"},{"$f":"'Task Schedule Overview'!F11","v":"G10/ Y11/ MYP5"},{"$f":"'Task Schedule Overview'!G11","v":"June 15th"},{"$f":"'Task Schedule Overview'!H11","v":"Subject Exploration"},{"$f":"'Task Schedule Overview'!I11","v":10}]
[{"$f":"'Task Schedule Overview'!A12","v":"Mar - Jun"},{"$f":"'Task Schedule Overview'!B12","v":"Writing Builder"},{"$f":"'Task Schedule Overview'!C12","v":"Prepare and draft your Essay"},{"$f":"'Task Schedule Overview'!D12","v":"1) Go to the help center\n2) Find the Personal Statements (UK) guide and the Common Application Essays (US) guide in the help center\n3) read the guides\n4) Print/save a PDF of your strategy report for the countries you intend to apply to.\n5) Use the strategy report to start writing about yourself. Create your first draft of a Personal Statement or Essay in the Writing builder\n5) Submit the task for review\nNote: you can also look at sample peronal statements and essays in the writing builder feature."},{"$f":"'Task Schedule Overview'!E12","v":"March 1st"},{"$f":"'Task Schedule Overview'!F12","v":"G11/ Y12/ DP1"},{"$f":"'Task Schedule Overview'!G12","v":"April 15th"},{"$f":"'Task Schedule Overview'!H12","v":"Personal Statement/ Essay Writing"},{"$f":"'Task Schedule Overview'!I12","v":14}]
[{"$f":"'Task Schedule Overview'!A13","v":"Jun - Sep"},{"$f":"'Task Schedule Overview'!B13","v":"Writing Builder"},{"$f":"'Task Schedule Overview'!C13","v":"Finalize your Personal Statement/ Common App essay"},{"$f":"'Task Schedule Overview'!D13","v":"1) Go to the writing builder\n2) Read any comments/suggestions on your essay to help them to improve.\n3) Continue to write your own essay using the Writing Builder.\n4) Continue to follow feedback and make these improvements before handing in on time.\n5) Submit your task for review (from the home page) see here: https://bridgeu.zendesk.com/hc/en-gb/articles/115002209733-Send-a-task-to-my-advisor-for-review"},{"$f":"'Task Schedule Overview'!E13","v":"June 3rd"},{"$f":"'Task Schedule Overview'!F13","v":"G11/ Y12/ DP1"},{"$f":"'Task Schedule Overview'!G13","v":"August 15th"},{"$f":"'Task Schedule Overview'!H13","v":"Personal Statement/ Essay Writing"},{"$f":"'Task Schedule Overview'!I13","v":15}]
[{"$f":"'Task Schedule Overview'!A14","v":"March - June"},{"$f":"'Task Schedule Overview'!B14","v":"Recommendation requests"},{"$f":"'Task Schedule Overview'!C14","v":"Draft a request for a letter of recommendation"},{"$f":"'Task Schedule Overview'!D14","v":"1) Go to the recommendations page\n2) Create a request and input a teacher’s email. Save it without sending it. ( see instructions here https://help.bridge-u.com/hc/en-gb/articles/360007636673-Request-a-recommendation-letter-for-Students)\n3) Add max 3 recommendation requests; \n4) Submit your task for review (from the home page) see here: https://bridgeu.zendesk.com/hc/en-gb/articles/115002209733-Send-a-task-to-my-advisor-for-review\n5) I will check before you send."},{"$f":"'Task Schedule Overview'!E14","v":"March 6th"},{"$f":"'Task Schedule Overview'!F14","v":"G11/ Y12/ DP1"},{"$f":"'Task Schedule Overview'!G14","v":"June 15th"},{"$f":"'Task Schedule Overview'!H14","v":"Recommendations/ References"},{"$f":"'Task Schedule Overview'!I14","v":16}]
[{"$f":"'Task Schedule Overview'!A15","v":"Mar - Jun"},{"$f":"'Task Schedule Overview'!B15","v":"Custom"},{"$f":"'Task Schedule Overview'!C15","v":"Applications"},{"$f":"'Task Schedule Overview'!D15","v":"1) Go to your Applications page\n2) Update your application list in BridgeU as you receive decisions from universities.\n3) If you have received any conditional offers, make sure to enter the terms of the conditions.\n4) Submit your task for review (from the home page) see here: https://bridgeu.zendesk.com/hc/en-gb/articles/115002209733-Send-a-task-to-my-advisor-for-review"},{"$f":"'Task Schedule Overview'!E15","v":"March 1st"},{"$f":"'Task Schedule Overview'!F15","v":"G12/ Y13/ DP2"},{"$f":"'Task Schedule Overview'!G15","v":"June 15th"},{"$f":"'Task Schedule Overview'!H15","v":"Offers/ Acceptances"},{"$f":"'Task Schedule Overview'!I15","v":19}]

{"sheet":"G12 Y13 DP2","index":5,"n_rows":13,"n_cols":9,"rows_kept":13,"cut":false,"hidden":false,"merged":[]}
[{"$f":"'Task Schedule Overview'!A1","v":"Month"},{"$f":"'Task Schedule Overview'!B1","v":"BridgeU Task Type"},{"$f":"'Task Schedule Overview'!C1","v":"Task Title"},{"$f":"'Task Schedule Overview'!D1","v":"Task Details"},{"$f":"'Task Schedule Overview'!E1","v":"Assignment Date"},{"$f":"'Task Schedule Overview'!F1","v":"Assigned Students"},{"$f":"'Task Schedule Overview'!G1","v":"Student Deadline"},{"$f":"'Task Schedule Overview'!H1","v":"Related Topic from Lesson Plans"},{"$f":"'Task Schedule Overview'!I1","v":"Related Lesson from Lesson Plans"}]
[{"$f":"'Task Schedule Overview'!A2","v":"Aug - Oct"},{"$f":"'Task Schedule Overview'!B2","v":"Custom"},{"$f":"'Task Schedule Overview'!C2","v":"Applications"},{"$f":"'Task Schedule Overview'!D2","v":"1) Go to your shortlist page\n2) Search for Universities you want to add to your shortlist that you have not been matched to (see instructions here https://bridgeu.zendesk.com/hc/en-gb/articles/115001766909-Add-a-university-to-my-Shortlist )\n3) Click apply here for shortlisted universities you want to apply to and \npick a deadline and an application method (ask your advisor if you are unsure). \n4) You may have additional information to look at. Click the name of the university and any additional information will be displayed. Make a note of what it says, including documents required and deadlines. Remember, this is not completely final yet, you still have time to go back and change your mind.\n5) Send your task for review from the homepage"},{"$f":"'Task Schedule Overview'!E2","v":"August 15th"},{"$f":"'Task Schedule Overview'!F2","v":"G12/ Y13/ DP2"},{"$f":"'Task Schedule Overview'!G2","v":"October 7th"},{"$f":"'Task Schedule Overview'!H2","v":"Finalize University List"},{"$f":"'Task Schedule Overview'!I2","v":17}]
[{"$f":"'Task Schedule Overview'!A6","v":"Sep - Dec"},{"$f":"'Task Schedule Overview'!B6","v":"University Matches"},{"$f":"'Task Schedule Overview'!C6","v":"Build your Shortlist with University Matches"},{"$f":"'Task Schedule Overview'!D6","v":"1) Complete the Profile Builder.\n2) Browse matches - shortlist the interesting ones, discard the ones you’re not interested in.\n3) From the shortlist page, add in universities you previously had in mind on the Shortlist page. Instructions here https://bridgeu.zendesk.com/hc/en-gb/articles/115001766909-Add-a-university-to-my-Shortlist\n4) Submit the task for review (from the home page) see here https://bridgeu.zendesk.com/hc/en-gb/articles/115002209733-Send-a-task-to-my-advisor-for-review"},{"$f":"'Task Schedule Overview'!E6","v":"September 15th"},{"$f":"'Task Schedule Overview'!F6","v":"G11/ Y12/ DP1"},{"$f":"'Task Schedule Overview'!G6","v":"December 3rd"},{"$f":"'Task Schedule Overview'!H6","v":"University Exploration"},{"$f":"'Task Schedule Overview'!I6","v":"11 & 12"}]
[{"$f":"'Task Schedule Overview'!A7","v":"Oct - Jan"},{"$f":"'Task Schedule Overview'!B7","v":"Custom"},{"$f":"'Task Schedule Overview'!C7","v":"Register on the Application website and update your Applications"},{"$f":"'Task Schedule Overview'!D7","v":"1) Go to the Applications Page\n2) Update your application list in BridgeU as you prepare your application materials. \n3) Make sure you are registered on the relevant application portal for each university or course.\nE.g. register on the CommonApp/UCAS website\n4) Send your task for review from the homepage. see here: https://bridgeu.zendesk.com/hc/en-gb/articles/115002209733-Send-a-task-to-my-advisor-for-review"},{"$f":"'Task Schedule Overview'!E7","v":"October 1st"},{"$f":"'Task Schedule Overview'!F7","v":"G12/ Y13/ DP2"},{"$f":"'Task Schedule Overview'!G7","v":"October 14th"},{"$f":"'Task Schedule Overview'!H7","v":"Application Submission"},{"$f":"'Task Schedule Overview'!I7","v":"18 activity 2"}]
[{"$f":"'Task Schedule Overview'!A8","v":"Nov - Feb"},{"$f":"'Task Schedule Overview'!B8","v":"Shortlist"},{"$f":"'Task Schedule Overview'!C8","v":"Research shortlisted universities"},{"$f":"'Task Schedule Overview'!D8","v":"1) Go to the shortlist page\n2) For each university or course that you’ve shortlisted, visit their website (see instructions on this article on Researching universities for more information https://help.bridge-u.com/hc/en-gb/articles/360003410377-Part-4-Researching-your-shortlisted-universities-courses)\n3) For each University or course, add one note for each one of the following information:\n3.a - Open days\n3.b - Course content\n3.c - Cost of living\n3.d - What type of assessment is used (projects, exams, coursework...)\n3.e - Scholarship opportunities\n4) Submit the task for review (from the home page) see here: https://bridgeu.zendesk.com/hc/en-gb/articles/115002209733-Send-a-task-to-my-advisor-for-review"},{"$f":"'Task Schedule Overview'!E8","v":"November 25th"},{"$f":"'Task Schedule Overview'!F8","v":"G11/ Y12/ DP1"},{"$f":"'Task Schedule Overview'!G8","v":"February15th"},{"$f":"'Task Schedule Overview'!H8","v":"University Shortlist"},{"$f":"'Task Schedule Overview'!I8","v":13}]
[{"$f":"#REF!","v":"#REF!"},"#REF!","#REF!","#REF!","#REF!","#REF!","#REF!","#REF!","#REF!"]
[{"$f":"'Task Schedule Overview'!A9","v":"Jan - April"},{"$f":"'Task Schedule Overview'!B9","v":"Assessments tool"},{"$f":"'Task Schedule Overview'!C9","v":"Explore and Choose Career paths"},{"$f":"'Task Schedule Overview'!D9","v":"1) Go to the careers page on your BridgeU account\n2)  Watch the video in the URL to follow instructions on how to use this tool https://help.bridge-u.com/hc/en-gb/articles/360007478794-Careers-tool-report-upload-video-guide \n3) Look at any professions that sound interesting to you. Look at the related skills to build a picture of potential career paths \n4) Mark ‘interested’ for any careers you want to research further. Try to add 5-10 to your job interests list\n5) Save the Careers Report by clicking on 'View Career Report', then click, 'Print Report' and save the report as a PDF  and attach it to this Assessment for me to review"},{"$f":"'Task Schedule Overview'!E9","v":"January 3rd"},{"$f":"'Task Schedule Overview'!F9","v":"G10/ Y11/ MYP5"},{"$f":"'Task Schedule Overview'!G9","v":"March 23rd"},{"$f":"'Task Schedule Overview'!H9","v":"Career Exploration"},{"$f":"'Task Schedule Overview'!I9","v":"8&9"}]
[{"$f":"'Task Schedule Overview'!A10","v":"Jan-May"},{"$f":"'Task Schedule Overview'!B10","v":"Strategy Advisor"},{"$f":"'Task Schedule Overview'!C10","v":"Complete the Strategy Advisor"},{"$f":"'Task Schedule Overview'!D10","v":"1) Go to the strategy advisor\n2) Add your past experiences. Log them by indicating (watch this Strategy advisor video guide for more details https://help.bridge-u.com/hc/en-gb/articles/360007578253-Strategy-Advisor-video-guide)\n2.a) WHEN - the period (e.g Sep 2018 - Dec 2018); \n2.b) WHERE - The organization/club \n2.c) WHAT - describe the activities you have done\n3) Identify the strategy factors. What qualities have you improved through this experience?\n4) Read about improving your strategy and discuss with your counsellor which strategy factors you should be focusing on\n5)  The Strategy Advisor helps you collect and organize your experiences. This is helpful when writing your applications.\n6) Submit the task for review (from the home page) see here: https://bridgeu.zendesk.com/hc/en-gb/articles/115002209733-Send-a-task-to-my-advisor-for-review"},{"$f":"'Task Schedule Overview'!E10","v":"January 15th"},{"$f":"'Task Schedule Overview'!F10","v":"G9/ Y10/ MYP4"},{"$f":"'Task Schedule Overview'!G10","v":"April 15th"},{"$f":"'Task Schedule Overview'!H10","v":"Strengths Exploration"},{"$f":"'Task Schedule Overview'!I10","v":2}]
[{"$f":"'Task Schedule Overview'!A11","v":"March - June"},{"$f":"'Task Schedule Overview'!B11","v":"Assessments tool"},{"$f":"'Task Schedule Overview'!C11","v":"Careers and related degree subjects"},{"$f":"'Task Schedule Overview'!D11","v":"1) Go to the careers page on your BridgeU account\n2)  Watch the video in the URL to follow instructions on how to use this tool https://help.bridge-u.com/hc/en-gb/articles/360007478794-Careers-tool-report-upload-video-guide\n3) For each one of your chosen careers, click ‘more info’ for your chosen careers to explore the list of related degree subjects.\n4) Mark any degree subjects you want to consider studying to your degree interests list.   \n5) Save the Careers Report by clicking on 'View Career Report', then click, 'Print Report' and save the report as a PDF  and attach it to this Assessment for me to review"},{"$f":"'Task Schedule Overview'!E11","v":"March 18th"},{"$f":"'Task Schedule Overview'!F11","v":"G10/ Y11/ MYP5"},{"$f":"'Task Schedule Overview'!G11","v":"June 15th"},{"$f":"'Task Schedule Overview'!H11","v":"Subject Exploration"},{"$f":"'Task Schedule Overview'!I11","v":10}]
[{"$f":"'Task Schedule Overview'!A12","v":"Mar - Jun"},{"$f":"'Task Schedule Overview'!B12","v":"Writing Builder"},{"$f":"'Task Schedule Overview'!C12","v":"Prepare and draft your Essay"},{"$f":"'Task Schedule Overview'!D12","v":"1) Go to the help center\n2) Find the Personal Statements (UK) guide and the Common Application Essays (US) guide in the help center\n3) read the guides\n4) Print/save a PDF of your strategy report for the countries you intend to apply to.\n5) Use the strategy report to start writing about yourself. Create your first draft of a Personal Statement or Essay in the Writing builder\n5) Submit the task for review\nNote: you can also look at sample peronal statements and essays in the writing builder feature."},{"$f":"'Task Schedule Overview'!E12","v":"March 1st"},{"$f":"'Task Schedule Overview'!F12","v":"G11/ Y12/ DP1"},{"$f":"'Task Schedule Overview'!G12","v":"April 15th"},{"$f":"'Task Schedule Overview'!H12","v":"Personal Statement/ Essay Writing"},{"$f":"'Task Schedule Overview'!I12","v":14}]
[{"$f":"'Task Schedule Overview'!A13","v":"Jun - Sep"},{"$f":"'Task Schedule Overview'!B13","v":"Writing Builder"},{"$f":"'Task Schedule Overview'!C13","v":"Finalize your Personal Statement/ Common App essay"},{"$f":"'Task Schedule Overview'!D13","v":"1) Go to the writing builder\n2) Read any comments/suggestions on your essay to help them to improve.\n3) Continue to write your own essay using the Writing Builder.\n4) Continue to follow feedback and make these improvements before handing in on time.\n5) Submit your task for review (from the home page) see here: https://bridgeu.zendesk.com/hc/en-gb/articles/115002209733-Send-a-task-to-my-advisor-for-review"},{"$f":"'Task Schedule Overview'!E13","v":"June 3rd"},{"$f":"'Task Schedule Overview'!F13","v":"G11/ Y12/ DP1"},{"$f":"'Task Schedule Overview'!G13","v":"August 15th"},{"$f":"'Task Schedule Overview'!H13","v":"Personal Statement/ Essay Writing"},{"$f":"'Task Schedule Overview'!I13","v":15}]
[{"$f":"'Task Schedule Overview'!A14","v":"March - June"},{"$f":"'Task Schedule Overview'!B14","v":"Recommendation requests"},{"$f":"'Task Schedule Overview'!C14","v":"Draft a request for a letter of recommendation"},{"$f":"'Task Schedule Overview'!D14","v":"1) Go to the recommendations page\n2) Create a request and input a teacher’s email. Save it without sending it. ( see instructions here https://help.bridge-u.com/hc/en-gb/articles/360007636673-Request-a-recommendation-letter-for-Students)\n3) Add max 3 recommendation requests; \n4) Submit your task for review (from the home page) see here: https://bridgeu.zendesk.com/hc/en-gb/articles/115002209733-Send-a-task-to-my-advisor-for-review\n5) I will check before you send."},{"$f":"'Task Schedule Overview'!E14","v":"March 6th"},{"$f":"'Task Schedule Overview'!F14","v":"G11/ Y12/ DP1"},{"$f":"'Task Schedule Overview'!G14","v":"June 15th"},{"$f":"'Task Schedule Overview'!H14","v":"Recommendations/ References"},{"$f":"'Task Schedule Overview'!I14","v":16}]
[{"$f":"'Task Schedule Overview'!A15","v":"Mar - Jun"},{"$f":"'Task Schedule Overview'!B15","v":"Custom"},{"$f":"'Task Schedule Overview'!C15","v":"Applications"},{"$f":"'Task Schedule Overview'!D15","v":"1) Go to your Applications page\n2) Update your application list in BridgeU as you receive decisions from universities.\n3) If you have received any conditional offers, make sure to enter the terms of the conditions.\n4) Submit your task for review (from the home page) see here: https://bridgeu.zendesk.com/hc/en-gb/articles/115002209733-Send-a-task-to-my-advisor-for-review"},{"$f":"'Task Schedule Overview'!E15","v":"March 1st"},{"$f":"'Task Schedule Overview'!F15","v":"G12/ Y13/ DP2"},{"$f":"'Task Schedule Overview'!G15","v":"June 15th"},{"$f":"'Task Schedule Overview'!H15","v":"Offers/ Acceptances"},{"$f":"'Task Schedule Overview'!I15","v":19}]

{"sheet":"Validations","index":6,"n_rows":5,"n_cols":1,"rows_kept":5,"cut":false,"hidden":false,"merged":[]}
["Student Cohorts"]
["G9/ Y10/ MYP4"]
["G10/ Y11/ MYP5"]
["G11/ Y12/ DP1"]
["G12/ Y13/ DP2"]